bitfinex/quotes_ETHUSD_20250726
["timestamp","ask_amount","ask_price","bid_price","bid_amount"]
[1753548637236,0.001,3734.0,3733.9,7.39281369]
[1753548637532,0.001,3734.0,3733.9,8.20821369]
[1753548639127,0.001,3734.0,3733.9,11.93506903]
[1753548640304,0.001,3734.0,3733.9,11.49536903]
[1753548640515,0.001,3734.0,3733.9,4.01941369]
[1753548640720,0.9204,3734.0,3733.9,5.25576492]
[1753548643931,0.9204,3734.0,3733.9,0.1336]
[1753548644097,0.9204,3734.0,3733.9,2.5776]
[1753548644298,0.9204,3734.0,3733.9,2.5766]
[1753548644504,0.9204,3734.0,3732.9,4.19535534]
[1753548644505,0.7861,3733.9,3733.3,2.67858837]
[1753548644730,1.7525,3733.9,3733.7,0.1336]
[1753548645034,0.9664,3733.8,3733.7,2.5766]
[1753548646328,0.9664,3733.8,3733.7,5.25490838]
[1753548646648,0.4973,3733.8,3733.7,5.25490838]
[1753548647614,0.4973,3733.8,3733.7,2.5766]
[1753548647815,0.9664,3733.8,3733.7,2.5766]
[1753548649248,0.4973,3733.8,3733.7,2.5766]
[1753548649450,0.9664,3733.8,3733.7,2.5766]
[1753548649745,0.9664,3733.8,3733.3,2.6785384]
[1753548649922,1.7523,3733.7,3733.2,2.6786546]
[1753548650127,0.765,3733.5,3733.3,0.1336]
[1753548650372,0.9664,3733.4,3733.3,2.5756]
[1753548650762,0.9664,3733.4,3733.3,2.442]
[1753548650962,0.9664,3733.4,3733.3,5.12059534]
[1753548651578,0.9664,3733.4,3733.3,2.442]
[1753548651983,0.9664,3733.4,3733.3,5.12059534]
[1753548652665,0.4973,3733.4,3733.3,5.12059534]
[1753548653192,0.765,3733.5,3733.4,2.67852359]
[1753548653355,1.2623,3733.5,3733.3,5.12058536]
[1753548653556,1.2623,3733.5,3733.4,2.67852359]
[1753548654709,1.2623,3733.5,3733.3,2.442]
[1753548654710,1.2623,3733.5,3733.3,5.12058069]
[1753548655487,1.2623,3733.5,3733.4,2.67852359]
[1753548655812,1.2623,3733.5,3733.3,5.12057786]
[1753548655975,1.2623,3733.5,3733.3,2.442]
[1753548656474,0.1336,3733.7,3733.4,2.67852359]
[1753548656675,0.4973,3733.7,3733.4,2.81207456]
[1753548656984,0.4973,3733.7,3733.6,0.1336]
[1753548658507,0.752,3733.8,3733.6,0.1336]
[1753548658710,1.2493,3733.8,3733.6,0.1336]
[1753548658929,0.752,3733.8,3733.6,0.1336]
[1753548659111,0.001,3734.0,3733.9,2.67816492]
[1753548659937,0.001,3734.0,3733.9,3.61656492]
[1753548660082,0.001,3734.0,3733.9,4.50629049]
[1753548660278,0.001,3734.0,3733.9,6.94829049]
[1753548661312,0.001,3734.0,3733.9,7.72229049]
[1753548667524,0.001,3734.4,3734.3,2.67787804]
[1753548667726,0.001,3734.4,3734.3,6.08035682]
[1753548668006,0.001,3734.4,3734.3,7.96165078]
[1753548668202,0.001,3734.4,3734.3,10.96165078]
[1753548668803,0.001,3734.4,3734.3,14.67717458]
[1753548670020,0.001,3734.4,3734.3,3.78115078]
[1753548670227,0.001,3734.4,3734.3,7.18832956]
[1753548670421,0.001,3734.4,3734.3,7.16155078]
[1753548672058,0.001,3734.4,3734.3,6.22415078]
[1753548672407,0.001,3734.4,3734.3,3.78115078]
[1753548672608,0.001,3734.4,3734.3,2.81147804]
[1753548672854,0.4539,3734.4,3734.3,5.25347804]
[1753548673254,0.001,3734.4,3734.3,5.25347804]
[1753548673549,0.4539,3734.4,3734.3,5.25347804]
[1753548674056,0.001,3734.4,3734.3,5.25347804]
[1753548674739,0.001,3734.4,3734.3,2.83825682]
[1753548674946,0.001,3734.4,3734.0,2.442]
[1753548674947,1.7356,3734.4,3734.0,2.442]
[1753548675172,0.8223,3734.4,3734.1,0.1336]
[1753548675384,0.9133,3734.3,3734.1,0.1336]
[1753548675669,0.4529,3734.3,3734.1,0.16038021]
[1753548675873,0.001,3734.4,3734.3,2.67787804]
[1753548676259,0.001,3734.4,3734.3,5.28225682]
[1753548683050,0.001,3734.4,3734.3,6.21175682]
[1753548683284,0.001,3734.4,3734.3,6.18497804]
[1753548683463,0.001,3734.4,3734.3,7.20657327]
[1753548683988,0.001,3734.4,3734.3,7.96617327]
[1753548684796,1e-08,3734.5,3734.4,5.67780634]
[1753548684999,1e-08,3734.5,3734.4,7.36770634]
[1753548696729,1e-08,3734.5,3734.4,11.08257433]
[1753548696966,1e-08,3734.5,3734.4,13.13914651]
[1753548699288,1e-08,3734.8,3734.7,6.46259123]
[1753548699458,1e-08,3734.8,3734.7,8.90259123]
[1753548699791,1e-08,3734.8,3734.7,9.96569123]
[1753548702774,1e-08,3734.8,3734.7,9.50529123]
[1753548702994,1e-08,3734.8,3734.7,10.87502249]
[1753548704347,1e-08,3734.8,3734.7,11.79672249]
[1753548708404,1e-08,3734.8,3734.7,8.43502249]
[1753548708552,1e-08,3734.8,3734.7,10.87502249]
[1753548709567,1e-08,3734.8,3734.7,7.65002249]
[1753548709769,1e-08,3734.8,3734.7,2.81119123]
[1753548709970,1e-08,3734.8,3734.7,5.25119123]
[1753548709971,1.71240001,3734.8,3734.7,5.25119123]
[1753548711585,1.71240001,3734.8,3734.7,0.1336]
[1753548712082,1.71240001,3734.8,3734.7,2.5736]
[1753548712286,1.71240001,3734.8,3734.7,5.25119123]
[1753548713755,1.71240001,3734.8,3734.7,2.44]
[1753548715076,1.71240001,3734.8,3734.7,5.11759123]
[1753548715384,1.71240001,3734.8,3734.7,2.44]
[1753548715890,1.71240001,3734.8,3734.7,5.11759123]
[1753548717493,1.71240001,3734.8,3734.7,2.44]
[1753548718768,1.71240001,3734.8,3734.6,0.1336]
[1753548718994,0.79500001,3734.8,3734.7,2.44]
[1753548719696,1.71240001,3734.8,3734.7,2.44]
[1753548720199,0.91740001,3734.8,3734.6,0.1336]
[1753548720362,4.04243463,3734.5,3734.4,0.002]
[1753548720695,37.17603463,3734.5,3734.4,0.002]
[1753548720865,38.09343463,3734.5,3734.4,0.002]
[1753548721902,8.09343463,3734.5,3734.4,0.002]
[1753548722105,38.09343463,3734.5,3734.4,0.002]
[1753548727419,8.09343463,3734.5,3734.4,0.002]
[1753548727625,38.09343463,3734.5,3734.4,0.002]
[1753548729429,8.09343463,3734.5,3734.4,0.002]
[1753548729629,38.09343463,3734.5,3734.4,0.002]
[1753548729809,40.53443463,3734.5,3734.4,0.002]
[1753548730499,10.53443463,3734.5,3734.4,0.002]
[1753548730724,40.53443463,3734.5,3734.4,0.002]
[1753548731228,40.09493463,3734.5,3734.4,0.002]
[1753548731592,40.53443463,3734.5,3734.4,0.002]
[1753548734696,10.53443463,3734.5,3734.4,0.002]
[1753548734928,40.53443463,3734.5,3734.4,0.002]
[1753548737939,10.53443463,3734.5,3734.4,0.002]
[1753548738104,40.09493463,3734.5,3734.4,0.002]
[1753548738634,40.55553463,3734.5,3734.4,0.002]
[1753548739742,40.09493463,3734.5,3734.4,0.002]
[1753548741033,10.09493463,3734.5,3734.4,0.002]
[1753548741238,40.09493463,3734.5,3734.4,0.002]
[1753548741938,40.55553463,3734.5,3734.4,0.002]
[1753548743735,40.55553463,3734.5,3734.4,1e-08]
[1753548744623,40.55553463,3734.5,3734.0,0.002]
[1753548744624,34.02632147,3734.1,3734.0,1e-08]
[1753548744825,43.31578946,3734.1,3734.0,1e-08]
[1753548745029,44.25328946,3734.1,3734.0,1e-08]
[1753548745550,40.07782147,3734.1,3734.0,1e-08]
[1753548745854,39.60092147,3734.1,3734.0,1e-08]
[1753548746060,40.07782147,3734.1,3734.0,1e-08]
[1753548746551,37.15992147,3734.1,3734.0,1e-08]
[1753548746715,9.60092147,3734.1,3734.0,0.93530001]
[1753548747317,9.60092147,3734.1,3734.0,1e-08]
[1753548747738,34.15992147,3734.1,3734.0,1e-08]
[1753548747936,36.60092147,3734.1,3734.0,1e-08]
[1753548748229,39.60092147,3734.1,3734.0,1e-08]
[1753548748426,39.60092147,3734.1,3734.0,0.47110001]
[1753548748958,39.60092147,3734.1,3734.0,1e-08]
[1753548750319,40.07782147,3734.1,3734.0,1e-08]
[1753548751243,39.60092147,3734.1,3734.0,1e-08]
[1753548751427,40.53842147,3734.1,3734.0,1e-08]
[1753548753154,40.07782147,3734.1,3734.0,1e-08]
[1753548754660,40.16909066,3734.1,3734.0,1e-08]
[1753548754820,39.69219066,3734.1,3734.0,1e-08]
[1753548757133,39.69219066,3734.1,3734.0,0.93530001]
[1753548757134,39.60092147,3734.1,3734.0,0.93530001]
[1753548757340,36.60992147,3734.1,3734.0,0.93530001]
[1753548757636,3.1246,3734.1,3734.0,0.93530001]
[1753548759264,5.80262147,3734.1,3734.0,0.93530001]
[1753548761080,5.80262147,3734.1,3734.0,1e-08]
[1753548761383,8.80262147,3734.1,3734.0,1e-08]
[1753548762095,40.54502147,3734.1,3734.0,1e-08]
[1753548762542,40.63627026,3734.1,3734.0,1e-08]
[1753548764587,40.64157026,3734.1,3734.0,1e-08]
[1753548765982,40.64154681,3734.1,3734.0,1e-08]
[1753548766343,40.18094681,3734.1,3734.0,1e-08]
[1753548767154,37.73994681,3734.1,3734.0,1e-08]
[1753548767366,39.69874681,3734.1,3734.0,1e-08]
[1753548767780,9.69874681,3734.1,3734.0,1e-08]
[1753548767958,39.69874681,3734.1,3734.0,1e-08]
[1753548772866,40.18094681,3734.1,3734.0,1e-08]
[1753548773072,40.62404681,3734.1,3734.0,1e-08]
[1753548773589,40.18094681,3734.1,3734.0,1e-08]
[1753548775183,39.69874681,3734.1,3734.0,1e-08]
[1753548775599,39.69974681,3734.1,3734.0,1e-08]
[1753548778893,9.69974681,3734.1,3734.0,1e-08]
[1753548779105,39.69974681,3734.1,3734.0,1e-08]
[1753548781196,40.18194681,3734.1,3734.0,1e-08]
[1753548781396,10.18194681,3734.1,3734.0,1e-08]
[1753548781693,40.62504681,3734.1,3734.0,1e-08]
[1753548782264,40.18194681,3734.1,3734.0,1e-08]
[1753548782601,47.95563014,3734.1,3734.0,1e-08]
[1753548782801,47.95563014,3734.1,3733.6,1e-08]
[1753548782802,2.67830838,3733.7,3733.6,1e-08]
[1753548783003,43.47558056,3733.7,3733.6,1e-08]
[1753548783166,44.36740171,3733.7,3733.6,1e-08]
[1753548784162,44.50321236,3733.7,3733.6,1e-08]
[1753548784591,14.6537577,3733.7,3733.6,1e-08]
[1753548784766,44.6537577,3733.7,3733.6,1e-08]
[1753548784963,14.6537577,3733.7,3733.6,1e-08]
[1753548785169,44.6537577,3733.7,3733.6,1e-08]
[1753548788123,51.8337577,3733.7,3733.6,1e-08]
[1753548788403,37.05649534,3733.3,3733.2,1e-08]
[1753548788582,39.72232068,3733.3,3733.2,1e-08]
[1753548788785,40.20452068,3733.3,3733.2,1e-08]
[1753548789101,40.64762068,3733.3,3733.2,1e-08]
[1753548790207,40.64745393,3733.3,3733.2,1e-08]
[1753548790394,40.20435393,3733.3,3733.2,1e-08]
[1753548794508,40.66275393,3733.3,3733.2,1e-08]
[1753548795724,40.20435393,3733.3,3733.2,1e-08]
[1753548796299,39.72215393,3733.3,3733.2,1e-08]
[1753548797216,38.34425393,3733.3,3733.2,0.92070001]
[1753548797594,38.89425393,3733.3,3733.2,0.92070001]
[1753548798324,8.89425393,3733.3,3733.2,0.92070001]
[1753548798519,38.89425393,3733.3,3733.2,0.92070001]
[1753548799228,8.89425393,3733.3,3733.2,0.92070001]
[1753548799528,38.89425393,3733.3,3733.2,0.92070001]
[1753548800411,8.89425393,3733.3,3733.2,0.92070001]
[1753548800719,38.89425393,3733.3,3733.2,0.92070001]
[1753548801826,38.80319534,3733.3,3733.2,0.92070001]
[1753548804398,8.80319534,3733.3,3733.2,0.92070001]
[1753548804594,38.80319534,3733.3,3733.2,0.92070001]
[1753548805311,38.89425162,3733.3,3733.2,0.92070001]
[1753548806236,38.89425162,3733.3,3733.2,1e-08]
[1753548808147,40.14295162,3733.3,3733.2,1e-08]
[1753548808321,40.14300877,3733.3,3733.2,1e-08]
[1753548809634,10.14300877,3733.3,3733.2,1e-08]
[1753548809806,40.14300877,3733.3,3733.2,1e-08]
[1753548811341,44.00500877,3733.3,3733.2,1e-08]
[1753548812141,44.14001158,3733.3,3733.2,1e-08]
[1753548812444,44.29069454,3733.3,3733.2,1e-08]
[1753548814448,43.80749454,3733.3,3733.2,1e-08]
[1753548814614,44.74928429,3733.3,3733.2,1e-08]
[1753548815011,44.29088429,3733.3,3733.2,1e-08]
[1753548815245,36.22866709,3733.2,3733.1,1e-08]
[1753548815541,39.85325323,3733.2,3733.1,1e-08]
[1753548816608,0.55,3732.7,3732.5,0.002]
[1753548816812,39.29282708,3732.6,3732.5,0.002]
[1753548817049,39.35064154,3732.6,3732.5,0.002]
[1753548817211,39.83384154,3732.6,3732.5,0.002]
[1753548818217,39.35064154,3732.6,3732.5,0.002]
[1753548819459,39.35058897,3732.6,3732.5,0.002]
[1753548819810,39.35058653,3732.6,3732.5,0.002]
[1753548820017,39.83378653,3732.6,3732.5,0.002]
[1753548820740,9.83378653,3732.6,3732.5,0.002]
[1753548821046,39.35058653,3732.6,3732.5,0.002]
[1753548823326,39.84588653,3732.6,3732.5,0.002]
[1753548823523,39.35058653,3732.6,3732.5,0.002]
[1753548823722,39.84588653,3732.6,3732.5,0.002]
[1753548823922,40.60128653,3732.6,3732.5,0.002]
[1753548824656,10.60128653,3732.6,3732.5,0.002]
[1753548824853,40.60128653,3732.6,3732.5,0.002]
[1753548825021,41.04178653,3732.6,3732.5,0.002]
[1753548825545,40.60128653,3732.6,3732.5,0.002]
[1753548825952,10.60128653,3732.6,3732.5,0.002]
[1753548826159,40.60128653,3732.6,3732.5,0.002]
[1753548826959,10.60128653,3732.6,3732.5,0.002]
[1753548827166,40.60128653,3732.6,3732.5,0.002]
[1753548827471,40.60114959,3732.6,3732.5,0.002]
[1753548830040,10.60114959,3732.6,3732.5,0.002]
[1753548830239,40.60114959,3732.6,3732.5,0.002]
[1753548831357,40.01473836,3732.6,3732.5,0.002]
[1753548831564,40.10582642,3732.6,3732.5,0.002]
[1753548831759,40.60112642,3732.6,3732.5,0.002]
[1753548832171,10.60112642,3732.6,3732.5,0.002]
[1753548832477,40.60112642,3732.6,3732.5,0.002]
[1753548833180,10.6011281,3732.6,3732.5,0.002]
[1753548833376,40.6011281,3732.6,3732.5,0.002]
[1753548833576,40.1058281,3732.6,3732.5,0.002]
[1753548834485,40.1058281,3732.6,3732.5,0.482]
[1753548834893,47.2858281,3732.6,3732.5,0.482]
[1753548835307,46.43833836,3732.6,3732.5,0.9352]
[1753548835511,46.52944032,3732.6,3732.5,0.9352]
[1753548835801,45.52379963,3732.6,3732.5,0.9352]
[1753548835989,46.07379963,3732.6,3732.5,0.9352]
[1753548838964,45.98269767,3732.6,3732.5,0.9352]
[1753548839163,46.07384339,3732.6,3732.5,0.9352]
[1753548839403,16.07384339,3732.6,3732.5,0.9352]
[1753548839584,45.98269767,3732.6,3732.5,0.9352]
[1753548840862,45.98269767,3732.6,3732.5,1.6919]
[1753548842908,45.98269767,3732.6,3732.5,0.9352]
[1753548843205,45.98269767,3732.6,3732.5,0.482]
[1753548843398,45.98269767,3732.6,3732.5,0.002]
[1753548843595,46.07390733,3732.6,3732.5,0.002]
[1753548843775,46.56920733,3732.6,3732.5,1e-08]
[1753548843971,47.39190733,3732.6,3732.5,1e-08]
[1753548844410,47.83240733,3732.6,3732.5,1e-08]
[1753548844903,47.98306382,3732.6,3732.5,1e-08]
[1753548845105,47.54256382,3732.6,3732.5,1e-08]
[1753548845307,47.04726382,3732.6,3732.5,1e-08]
[1753548845507,17.04726382,3732.6,3732.5,1e-08]
[1753548845731,47.04726382,3732.6,3732.5,1e-08]
[1753548846477,47.54256382,3732.6,3732.5,1e-08]
[1753548848886,47.98306382,3732.6,3732.5,1e-08]
[1753548849412,47.98306382,3732.6,3732.1,0.1]
[1753548849413,33.22938481,3732.2,3732.1,1e-08]
[1753548849620,42.47546246,3732.2,3732.1,1e-08]
[1753548849820,43.10436246,3732.2,3732.1,1e-08]
[1753548850026,3.229672,3731.8,3731.6,0.48]
[1753548850322,3.229672,3731.8,3731.7,0.58]
[1753548850323,38.669672,3731.8,3731.7,0.58]
[1753548850627,8.803272,3731.8,3731.7,0.58]
[1753548850795,38.803272,3731.8,3731.7,0.58]
[1753548851193,38.803272,3731.8,3731.7,1.0332]
[1753548851612,38.803272,3731.8,3731.7,0.1]
[1753548851814,38.89448196,3731.8,3731.7,0.1]
[1753548852016,38.89448196,3731.8,3731.7,0.58]
[1753548853440,8.89448196,3731.8,3731.7,0.58]
[1753548853597,38.89448196,3731.8,3731.7,1.0426]
[1753548855413,38.89442525,3731.8,3731.7,1.0426]
[1753548856534,36.45442525,3731.8,3731.7,1.0426]
[1753548856693,38.803272,3731.8,3731.7,1.8522]
[1753548859444,38.803272,3731.8,3731.7,1.0426]
[1753548859649,38.803272,3731.8,3731.7,0.1]
[1753548859833,8.8944041,3731.8,3731.7,0.1]
[1753548860038,38.8944041,3731.8,3731.7,0.1]
[1753548860413,38.803272,3731.8,3731.7,0.1]
[1753548860769,38.89439289,3731.8,3731.7,0.1]
[1753548860944,38.803272,3731.8,3731.7,0.1]
[1753548861146,38.803272,3731.8,3731.7,1.0274]
[1753548861352,38.89439268,3731.8,3731.7,1.795]
[1753548861561,36.363272,3731.8,3731.7,1.795]
[1753548861721,38.803272,3731.8,3731.7,1.795]
[1753548862245,36.363272,3731.8,3731.7,1.795]
[1753548862568,5.253272,3731.8,3731.7,1.795]
[1753548862765,8.803272,3731.8,3731.7,1.795]
[1753548862913,5.803272,3731.8,3731.7,1.795]
[1753548863116,8.803272,3731.8,3731.7,1.795]
[1753548865267,3.6836,3731.8,3731.7,1.795]
[1753548865472,6.1236,3731.8,3731.7,1.795]
[1753548865788,0.6836,3731.8,3731.7,1.795]
[1753548866069,3.1236,3731.8,3731.7,1.795]
[1753548866263,5.803272,3731.8,3731.7,1.795]
[1753548868288,3.1226,3731.8,3731.7,1.795]
[1753548868638,5.802272,3731.8,3731.7,1.795]
[1753548868870,3.1226,3731.8,3731.7,1.795]
[1753548869177,0.6836,3731.8,3731.7,1.795]
[1753548869372,3.1226,3731.8,3731.7,1.795]
[1753548869571,5.802272,3731.8,3731.7,1.795]
[1753548869775,35.802272,3731.8,3731.7,1.795]
[1753548870644,38.802272,3731.8,3731.7,1.795]
[1753548870855,38.802272,3731.8,3731.7,0.1]
[1753548872798,39.266472,3731.8,3731.7,0.1]
[1753548873002,39.713472,3731.8,3731.7,0.1]
[1753548873709,39.713472,3731.8,3731.3,0.002]
[1753548873710,33.22995926,3731.4,3731.3,1e-08]
[1753548874008,38.66895926,3731.4,3731.3,1e-08]
[1753548874211,39.58015926,3731.4,3731.3,1e-08]
[1753548875110,38.66895926,3731.4,3731.3,1e-08]
[1753548875310,38.66895926,3731.4,3731.3,0.46480001]
[1753548875617,8.66895926,3731.4,3731.3,0.92740001]
[1753548875792,5.989,3731.4,3731.3,0.92740001]
[1753548875995,0.001,3732.0,3731.3,1.09690001]
[1753548876289,0.001,3732.0,3731.4,0.9274]
[1753548876290,32.439,3731.9,3731.4,0.9274]
[1753548876604,32.439,3731.9,3731.5,1.695]
[1753548876605,0.55,3731.7,3731.5,1.695]
[1753548876781,2.989,3731.6,3731.5,0.7676]
[1753548877496,2.989,3731.6,3731.5,1.695]
[1753548883728,3.1226,3731.6,3731.5,1.695]
[1753548885129,5.80241562,3731.6,3731.5,0.7676]
[1753548885425,3.1226,3731.6,3731.5,1.2223]
[1753548886195,3.1226,3731.6,3731.5,0.7676]
[1753548886840,3.1226,3731.6,3731.5,1.2223]
[1753548887133,3.1226,3731.6,3731.3,1e-08]
[1753548887134,2.67992419,3731.5,3731.3,1e-08]
[1753548887333,2.439,3731.4,3731.3,1e-08]
[1753548887637,39.17255875,3731.4,3731.3,1e-08]
[1753548887799,39.74105926,3731.4,3731.3,1e-08]
[1753548888134,39.27265926,3731.4,3731.3,1e-08]
[1753548889917,38.80255926,3731.4,3731.3,1e-08]
[1753548892634,38.80255926,3731.4,3731.3,0.45470001]
[1753548895049,38.80255926,3731.4,3731.3,1e-08]
[1753548895555,38.80255926,3731.4,3731.3,0.45470001]
[1753548896140,38.80255926,3731.4,3731.3,1e-08]
[1753548896655,38.80255926,3731.4,3731.3,0.45470001]
[1753548897159,36.1226,3731.4,3731.3,0.88760001]
[1753548897565,38.80255926,3731.4,3731.3,0.88760001]
[1753548900448,36.36355926,3731.4,3731.3,0.88760001]
[1753548900747,38.80255926,3731.4,3731.3,0.88760001]
[1753548901346,36.36355926,3731.4,3731.3,0.88760001]
[1753548901553,38.80255926,3731.4,3731.3,0.88760001]
[1753548902058,0.1336,3731.4,3731.3,1.69380001]
[1753548902253,2.439,3731.4,3731.3,1.86318001]
[1753548902847,2.439,3731.4,3731.3,1.69380001]
[1753548903046,5.66895926,3731.4,3731.3,1e-08]
[1753548903366,39.13905926,3731.4,3731.3,1e-08]
[1753548903820,38.66895926,3731.4,3731.3,1e-08]
[1753548904218,39.13905926,3731.4,3731.3,1e-08]
[1753548904423,39.60745926,3731.4,3731.3,1e-08]
[1753548904733,39.13905926,3731.4,3731.3,1e-08]
[1753548904921,39.60745926,3731.4,3731.3,1e-08]
[1753548906950,39.13905926,3731.4,3731.3,1e-08]
[1753548909024,39.60745926,3731.4,3731.3,1e-08]
[1753548909788,40.5129792,3731.4,3731.3,1e-08]
[1753548912068,10.5129792,3731.4,3731.3,1e-08]
[1753548912279,40.5129792,3731.4,3731.3,1e-08]
[1753548912482,40.0445792,3731.4,3731.3,1e-08]
[1753548912694,40.4937792,3731.4,3731.3,1e-08]
[1753548913592,9.5744792,3731.4,3731.3,1e-08]
[1753548913756,40.0545792,3731.4,3731.3,1e-08]
[1753548914206,37.6155792,3731.4,3731.3,1e-08]
[1753548914405,40.0545792,3731.4,3731.3,1e-08]
[1753548914871,47.2345792,3731.4,3731.3,1e-08]
[1753548915395,17.2345792,3731.4,3731.3,1e-08]
[1753548915596,47.2345792,3731.4,3731.3,1e-08]
[1753548916196,43.7654792,3731.4,3731.3,1e-08]
[1753548916394,45.39009797,3731.4,3731.3,1e-08]
[1753548916576,45.94009797,3731.4,3731.3,1e-08]
[1753548916776,45.84895926,3731.4,3731.3,1e-08]
[1753548917180,43.40995926,3731.4,3731.3,1e-08]
[1753548917497,45.84895926,3731.4,3731.3,0.46270001]
[1753548918013,45.84895926,3731.4,3731.3,0.90510001]
[1753548918014,45.29895926,3731.4,3731.3,0.90510001]
[1753548918376,33.0,3731.4,3731.3,0.90510001]
[1753548918690,2.439,3731.4,3731.3,1.07289001]
[1753548919899,5.11895926,3731.4,3731.3,1.07289001]
[1753548921006,5.11895926,3731.4,3731.3,0.90510001]
[1753548921302,8.66895926,3731.4,3731.3,1e-08]
[1753548921700,38.66895926,3731.4,3731.3,1e-08]
[1753548921887,39.14905926,3731.4,3731.3,1e-08]
[1753548922714,38.66895926,3731.4,3731.3,1e-08]
[1753548924904,39.14905926,3731.4,3731.3,1e-08]
[1753548926869,39.15005926,3731.4,3731.3,1e-08]
[1753548927905,38.66995926,3731.4,3731.3,0.90510001]
[1753548928607,8.66995926,3731.4,3731.3,0.90510001]
[1753548929885,6.23095926,3731.4,3731.3,0.90510001]
[1753548930089,8.66995926,3731.4,3731.3,0.90510001]
[1753548930816,8.66995926,3731.4,3731.3,1e-08]
[1753548931111,38.66995926,3731.4,3731.3,1e-08]
[1753548931279,39.15005926,3731.4,3731.3,1e-08]
[1753548933079,38.66995926,3731.4,3731.3,1e-08]
[1753548934309,8.66995926,3731.4,3731.3,1e-08]
[1753548934604,38.66995926,3731.4,3731.3,1e-08]
[1753548936476,38.66995926,3731.4,3731.3,0.90510001]
[1753548937421,36.23095926,3731.4,3731.3,1e-08]
[1753548937592,8.66995926,3731.4,3731.3,1.67030001]
[1753548939211,8.66995926,3731.4,3731.3,1e-08]
[1753548939418,38.66995926,3731.4,3731.3,0.46270001]
[1753548939709,38.66995926,3731.4,3731.3,1e-08]
[1753548939913,39.15005926,3731.4,3731.3,1e-08]
[1753548940882,38.66995926,3731.4,3731.3,1e-08]
[1753548942620,39.13225926,3731.4,3731.3,1e-08]
[1753548943287,39.57845926,3731.4,3731.3,1e-08]
[1753548944113,39.13225926,3731.4,3731.3,1e-08]
[1753548945126,38.66995926,3731.4,3731.3,1e-08]
[1753548945489,38.66995926,3731.4,3731.3,0.94270001]
[1753548946645,3.551,3731.4,3731.3,0.94270001]
[1753548946793,2.99,3731.4,3731.3,0.94270001]
[1753548947728,5.66995926,3731.4,3731.3,0.94270001]
[1753548948324,5.66995926,3731.4,3731.3,1e-08]
[1753548948687,35.66995926,3731.4,3731.3,1e-08]
[1753548948892,36.13225926,3731.4,3731.3,1e-08]
[1753548949127,35.66995926,3731.4,3731.3,1e-08]
[1753548949297,33.23095926,3731.4,3731.3,1e-08]
[1753548949494,38.66995926,3731.4,3731.3,1e-08]
[1753548949695,39.13225926,3731.4,3731.3,1e-08]
[1753548949896,39.94235926,3731.4,3731.3,1e-08]
[1753548950119,40.38855926,3731.4,3731.3,1e-08]
[1753548952097,39.94235926,3731.4,3731.3,1e-08]
[1753548952598,39.48005926,3731.4,3731.3,1e-08]
[1753548953128,39.94235926,3731.4,3731.3,1e-08]
[1753548953535,39.48005926,3731.4,3731.3,1e-08]
[1753548955942,9.48005926,3731.4,3731.3,1e-08]
[1753548956138,39.48005926,3731.4,3731.3,1e-08]
[1753548957017,38.66995926,3731.4,3731.3,1e-08]
[1753548957837,36.23095926,3731.4,3731.3,1e-08]
[1753548958023,38.66995926,3731.4,3731.3,1e-08]
[1753548958429,39.13225926,3731.4,3731.3,1e-08]
[1753548959716,38.66995926,3731.4,3731.3,1e-08]
[1753548961548,36.23095926,3731.4,3731.3,1e-08]
[1753548961848,38.66995926,3731.4,3731.3,0.94270001]
[1753548964713,38.66995926,3731.4,3731.3,0.49320001]
[1753548966152,38.66995926,3731.4,3731.3,0.94270001]
[1753548966449,36.23095926,3731.4,3731.3,0.94270001]
[1753548966623,8.66995926,3731.4,3731.3,0.94270001]
[1753548967333,5.99,3731.4,3731.3,0.94270001]
[1753548968648,8.66995926,3731.4,3731.3,0.94270001]
[1753548971054,5.99,3731.4,3731.3,0.94270001]
[1753548972164,8.66995926,3731.4,3731.3,0.94270001]
[1753548974024,8.66995926,3731.4,3731.3,1e-08]
[1753548975345,38.66995926,3731.4,3731.3,1e-08]
[1753548977280,8.66995926,3731.4,3731.3,1e-08]
[1753548977438,38.66995926,3731.4,3731.3,1e-08]
[1753548978072,8.66995926,3731.4,3731.3,1e-08]
[1753548979564,8.66995926,3731.4,3731.3,0.94920001]
[1753548981280,8.66995926,3731.4,3731.3,1e-08]
[1753548982481,8.66995926,3731.4,3731.3,0.94920001]
[1753548988898,6.23095926,3731.4,3731.3,0.94920001]
[1753548989261,8.66895926,3731.4,3731.3,0.94920001]
[1753548989997,6.23095926,3731.4,3731.3,0.94920001]
[1753548990182,8.66895926,3731.4,3731.3,1e-08]
[1753548990494,9.16705926,3731.4,3731.3,1e-08]
[1753548990693,38.66895926,3731.4,3731.3,1e-08]
[1753548994895,39.16705926,3731.4,3731.3,1e-08]
[1753548997778,38.66895926,3731.4,3731.3,1e-08]
[1753548998482,38.66895926,3731.4,3731.3,0.49760001]
[1753548999376,38.66895926,3731.4,3731.3,1e-08]
[1753548999888,39.16705926,3731.4,3731.3,1e-08]
[1753549000267,38.66895926,3731.4,3731.3,1e-08]
[1753549000461,36.23095926,3731.4,3731.3,1e-08]
[1753549000762,38.66895926,3731.4,3731.3,1e-08]
[1753549001267,35.989,3731.4,3731.3,0.49760001]
[1753549001470,38.66895926,3731.4,3731.3,0.94920001]
[1753549003199,38.66895926,3731.4,3731.3,1e-08]
[1753549003407,38.66895926,3731.4,3731.3,0.45460001]
[1753549004183,38.66895926,3731.4,3731.3,0.89850001]
[1753549005889,38.66895926,3731.4,3731.3,0.45460001]
[1753549009602,38.66895926,3731.4,3731.3,1e-08]
[1753549011410,36.23095926,3731.4,3731.3,1e-08]
[1753549011597,38.66895926,3731.4,3731.3,1e-08]
[1753549011910,8.66895926,3731.4,3731.3,1e-08]
[1753549012592,8.66895926,3731.4,3731.3,0.45460001]
[1753549013726,5.989,3731.4,3731.3,0.45460001]
[1753549014018,8.66895926,3731.4,3731.3,0.89850001]
[1753549014203,6.23095926,3731.4,3731.3,0.89850001]
[1753549014418,8.66895926,3731.4,3731.3,0.89850001]